[Event "ESTCC U50 2018"]
[Site "Walbrzych"]
[Date "2018.04.18"]
[Round "5"]
[White "Pastor Alonso De Prado, Alberto"]
[Black "Burchardt, Brigitte"]
[Result "0-1"]
[ECO "B22"]
[WhiteElo "2162"]
[BlackElo "2166"]
[Annotator "NA"]
[PlyCount "68"]
[EventDate "2018.??.??"]
[EventCountry "POL"]
[SourceTitle "playchess.com"]
[Source "ChessBase"]
[SourceQuality "1"]
[WhiteTeam "Spain"]
[BlackTeam "Germany"]
[WhiteTeamCountry "ESP"]
[BlackTeamCountry "GER"]
[TimeControl "40/5400+30:1800+30"]

1. e4 {[%emt 0:00:00]} c5 {[%emt 0:00:03]} 2. c3 {[%emt 0:00:00]} e5 {[%emt 0:00:06]} 3. Nf3 {[%emt 0:00:20]} Nc6 {[%emt 0:01:14]} 4. Bc4 {[%emt 0:00:14]} Qe7 $16 {[%emt 0:15:04]} (4... Be7 $14) 5. O-O {[%emt 0:01:51]} h6 {[%emt 0:01:58]} 6. d4 {[%emt 0:01:25]} d6 {[%emt 0:04:17]} 7. Re1 {[%emt 0:13:53]} Nf6 {[%emt 0:01:40]} 8. dxe5 {[%emt 0:03:57]} dxe5 {[%emt 0:00:38]} 9. Nbd2 {[%emt 0:00:11]} Qc7 {[%emt 0:21:59]} 10. Nf1 {[%emt 0:09:39]} Bd6 {[%emt 0:04:59]} 11. Ng3 {[%emt 0:05:31]} O-O {[%emt 0:03:07]} 12. Nh4 {[%emt 0:00:42]} Ne7 {[%emt 0:03:55]} 13. Nh5 {[%emt 0:08:50]} Ne8 {[%emt 0:04:56]} 14. Qf3 {[%emt 0:05:34]} Kh7 {[%emt 0:02:56]} 15. g4 {[%emt 0:05:30]} Ng8 {[%emt 0:06:05]} 16. g5 {[%emt 0:02:49]} g6 {[%emt 0:06:03]} 17. Ng3 {[%emt 0:05:49]} Qe7 {[%emt 0:09:10]} 18. Nhf5 {[%emt 0:03:02]} gxf5 {[%emt 0:00:12]} 19. exf5 {[%emt 0:01:08]} f6 {[%emt 0:02:55]} 20. h4 {[%emt 0:00:27]} fxg5 {[%emt 0:00:22]} 21. hxg5 {[%emt 0:00:17]} hxg5 {[%emt 0:01:20]} 22. Qh5+ {[%emt 0:01:33]} Nh6 {[%emt 0:00:14]} 23. Qg6+ {[%emt 0:00:34]} Kh8 {[%emt 0:00:05]} 24. Qxh6+ {[%emt 0:01:31]} Qh7 {[%emt 0:00:06]} 25. Qxg5 {[%emt 0:01:36]} Bxf5 {[%emt 0:01:56]} 26. Nxf5 {[%emt 0:03:59]} Rxf5 {[%emt 0:00:07]} 27. Qg2 {[%emt 0:00:08]} Nf6 {[%emt 0:02:41]} 28. Re3 {[%emt 0:02:29]} Rh5 {[%emt 0:01:02]} 29. Rd3 {[%emt 0:01:53]} Be7 {[%emt 0:01:07]} 30. Bg5 {[%emt 0:01:36]} Rf8 {[%emt 0:00:07]} 31. Rg3 {[%emt 0:00:32]} Ne4 {[%emt 0:01:00]} 32. Bxe7 {[%emt 0:00:36]} Nxg3 {[%emt 0:00:03]} 33. Qxg3 {[%emt 0:00:47]} Qxe7 {[%emt 0:00:11]} 34. Qe3 {[%emt 0:01:07]} Qg7+ {[%emt 0:00:54]} 0-1

[Event "ESTCC U50 2018"]
[Site "Walbrzych"]
[Date "2018.04.18"]
[Round "5"]
[White "Roth, Martin"]
[Black "Tuomala, Timo"]
[Result "1/2-1/2"]
[ECO "B25"]
[WhiteElo "2141"]
[BlackElo "2197"]
[Annotator "NA"]
[PlyCount "103"]
[EventDate "2018.??.??"]
[EventCountry "POL"]
[SourceTitle "playchess.com"]
[Source "ChessBase"]
[SourceQuality "1"]
[WhiteTeam "Germany"]
[BlackTeam "Finland"]
[WhiteTeamCountry "GER"]
[BlackTeamCountry "FIN"]
[TimeControl "40/5400+30:1800+30"]

1. e4 {[%emt 0:00:00]} c5 {[%emt 0:00:03]} 2. Nc3 {[%emt 0:00:00]} Nc6 {[%emt 0:00:04]} 3. g3 {[%emt 0:00:03]} g6 {[%emt 0:00:04]} 4. Bg2 {[%emt 0:00:06]} Bg7 {[%emt 0:00:04]} 5. d3 {[%emt 0:00:12]} d6 {[%emt 0:00:09] LiveBook: 4507 Games} 6. Nge2 {[%emt 0:00:46]} Rb8 {[%emt 0:05:09]} 7. a4 {[%emt 0:00:09]} a6 {[%emt 0:00:43] B25: Closed Sicilian: 3 g3, lines without early Be3} (7... b6 8. O-O Nf6 9. h3 {½-½ (9) Rogulj,B (2396)-Palac,M (2538) Zagreb 2017}) 8. O-O {[%emt 0:00:07]} e6 {[%emt 0:01:26]} 9. f4 {[%emt 0:00:39]} Nge7 {[%emt 0:00:25]} 10. Be3 {[%emt 0:02:59]} Nd4 {[%emt 0:00:40]} 11. Bf2 {[%emt 0:04:41]} Nec6 {[%emt 0:04:35]} 12. Rb1 $146 {[%emt 0:01:18]} ({Find the theoretical novelty and annotate with similar games:} 12. Nxd4 Nxd4 13. Qd2 O-O 14. Nd1 f5 15. Ne3 b6 16. Ra3 {0-1 (47) Valenta,V (2040)-Bukojemski,A (2235) Olomouc 2016}) 12... Qa5 {[%emt 0:06:59]} 13. b3 {[%emt 0:05:19]} O-O {[%emt 0:02:16]} 14. Be1 {[%emt 0:02:46]} Qc7 {[%emt 0:04:30]} 15. Kh1 {[%emt 0:03:18]} Bd7 {[%emt 0:02:08]} 16. Nxd4 {[%emt 0:09:07]} Nxd4 {[%emt 0:14:47]} 17. Ne2 {[%emt 0:03:44]} f5 $11 {[%emt 0:01:33]} 18. c3 {[%emt 0:02:41]} Nxe2 {[%emt 0:01:11]} 19. Qxe2 {[%emt 0:00:01]} Bc6 {[%emt 0:00:26]} 20. Qc2 {[%emt 0:02:42]} b5 {[%emt 0:06:08]} 21. axb5 {[%emt 0:00:33]} axb5 {[%emt 0:00:06]} 22. Bd2 {[%emt 0:11:57]} Qb7 {[%emt 0:03:17]} 23. Rfe1 {[%emt 0:00:24]} Rfc8 {[%emt 0:10:43]} 24. Bc1 {[%emt 0:05:47]} Ra8 {[%emt 0:01:49]} 25. Re2 {[%emt 0:16:04]} Ra6 {[%emt 0:09:38]} 26. h4 {[%emt 0:10:01]} Rca8 {[%emt 0:01:08]} 27. Kh2 {[%emt 0:01:06]} R8a7 {[%emt 0:09:26]} 28. b4 {[%emt 0:04:27]} fxe4 {[%emt 0:06:00]} 29. dxe4 {[%emt 0:02:34]} Qa8 {[%emt 0:05:18]} 30. Rb2 {[%emt 0:04:33]} Ra3 {[%emt 0:01:41]} 31. Bd2 {[%emt 0:00:37]} c4 {[%emt 0:00:46]} 32. Be1 {[%emt 0:01:32]} Kf7 {[%emt 0:01:43]} 33. Qc1 {[%emt 0:00:13]} Qh8 {[%emt 0:00:18]} 34. Rbc2 {[%emt 0:00:12]} Qd8 {[%emt 0:00:50]} 35. Qe3 {[%emt 0:00:10]} Qc7 {[%emt 0:00:41]} 36. Bh3 {[%emt 0:01:25]} R7a6 {[%emt 0:00:23]} 37. e5 {[%emt 0:00:30]} Bd5 {[%emt 0:00:47]} 38. Rcd2 {[%emt 0:00:33]} Qa7 {[%emt 0:00:25]} 39. Qxa7+ {[%emt 0:00:00]} Rxa7 {[%emt 0:00:00]} 40. Bf2 {[%emt 0:00:00]} R7a6 {[%emt 0:01:11]} 41. Bd4 {[%emt 0:03:47]} dxe5 {[%emt 0:00:58]} 42. fxe5 {[%emt 0:00:19]} Bh6 {[%emt 0:00:23]} 43. Rf2+ {[%emt 0:01:05]} Ke8 {[%emt 0:00:30]} 44. Rde2 {[%emt 0:00:14]} Ra1 {[%emt 0:02:47]} 45. Bg2 {[%emt 0:00:31]} Bxg2 {[%emt 0:00:07]} 46. Kxg2 {[%emt 0:00:02]} Rd1 {[%emt 0:00:15]} 47. g4 {[%emt 0:00:47]} Bf8 {[%emt 0:01:46]} 48. Rd2 {[%emt 0:00:41]} Rxd2 {[%emt 0:00:28]} 49. Rxd2 {[%emt 0:00:01]} Be7 {[%emt 0:00:12]} 50. g5 {[%emt 0:02:46]} Ra1 {[%emt 0:00:07]} 51. Bf2 {[%emt 0:00:53]} Ra3 {[%emt 0:01:07]} 52. Bd4 {[%emt 0:01:35]} 1/2-1/2

[Event "ESTCC U50 2018"]
[Site "Walbrzych"]
[Date "2018.04.18"]
[Round "5"]
[White "Ograbek, Grzegorz"]
[Black "Pietinen, Pekka"]
[Result "0-1"]
[ECO "D18"]
[WhiteElo "2140"]
[BlackElo "1983"]
[Annotator "NA"]
[PlyCount "92"]
[EventDate "2018.??.??"]
[EventCountry "POL"]
[SourceTitle "playchess.com"]
[Source "ChessBase"]
[SourceQuality "1"]
[WhiteTeam "Poland"]
[BlackTeam "Finland"]
[WhiteTeamCountry "POL"]
[BlackTeamCountry "FIN"]
[TimeControl "40/5400+30:1800+30"]

1. d4 {[%emt 0:00:00]} d5 {[%emt 0:00:45]} 2. c4 {[%emt 0:00:00]} c6 {[%emt 0:00:24]} 3. Nf3 {[%emt 0:00:10]} Nf6 {[%emt 0:00:34]} 4. Nc3 {[%emt 0:00:17]} dxc4 {[%emt 0:03:30]} 5. a4 {[%emt 0:04:40]} Bf5 {[%emt 0:01:45]} 6. e3 {[%emt 0:00:19]} e6 {[%emt 0:00:39]} 7. Bxc4 {[%emt 0:00:36]} Bb4 {[%emt 0:02:25] LiveBook: 4289 Games} 8. O-O {[%emt 0:00:19]} Nbd7 {[%emt 0:01:54]} 9. Qe2 {[%emt 0:00:44]} Ne4 {[%emt 0:04:58]} 10. Na2 {[%emt 0:02:59]} Bd6 {[%emt 0:03:11]} 11. Nc3 {[%emt 0:08:56]} O-O {[%emt 0:04:57]} 12. Rd1 {[%emt 0:10:09]} Qc7 {[%emt 0:03:48]} 13. h3 {[%emt 0:01:34]} Be7 {[%emt 0:02:44]} 14. Bd3 {[%emt 0:00:24]} Nxc3 $11 {[%emt 0:06:51]} 15. bxc3 {[%emt 0:00:08]} Bxd3 {[%emt 0:00:07]} 16. Qxd3 {[%emt 0:01:00]} Rfd8 {[%emt 0:06:59]} 17. Ba3 {[%emt 0:05:00]} Bxa3 {[%emt 0:03:07]} 18. Rxa3 {[%emt 0:00:32]} c5 {[%emt 0:00:16]} 19. Raa1 {[%emt 0:06:10]} Rac8 {[%emt 0:02:20]} 20. Rdb1 {[%emt 0:03:28]} h6 {[%emt 0:01:44]} 21. Rb5 {[%emt 0:00:24]} Qc6 {[%emt 0:04:59]} 22. Qb1 {[%emt 0:00:31]} b6 {[%emt 0:02:31]} 23. Rb2 {[%emt 0:09:13]} Rb8 {[%emt 0:01:46]} 24. Qd3 {[%emt 0:01:52]} cxd4 {[%emt 0:02:47]} 25. cxd4 {[%emt 0:00:23]} Rdc8 {[%emt 0:01:36]} 26. Qa6 {[%emt 0:05:49]} Qb7 {[%emt 0:03:07]} 27. Qd3 {[%emt 0:10:45]} Qc6 {[%emt 0:00:38]} 28. Qa6 {[%emt 0:01:02]} Qb7 {[%emt 0:00:08]} 29. Qe2 {[%emt 0:00:05]} Qc6 {[%emt 0:02:03]} 30. Rd2 {[%emt 0:01:02]} Qc3 {[%emt 0:01:52]} 31. Rb1 {[%emt 0:02:18]} Qc4 {[%emt 0:03:47]} 32. Qd1 {[%emt 0:01:50]} Rc7 {[%emt 0:01:17]} 33. Ne1 {[%emt 0:01:08]} Rbc8 {[%emt 0:01:46]} 34. Nd3 {[%emt 0:00:13]} Nf6 {[%emt 0:01:09]} 35. Ne5 {[%emt 0:18:49]} Qa6 {[%emt 0:02:46]} 36. Kh2 {[%emt 0:02:13]} Ne4 {[%emt 0:02:56]} 37. Rdb2 {[%emt 0:01:49]} Nc3 {[%emt 0:00:44]} 38. Qf1 {[%emt 0:00:08]} Qxf1 {[%emt 0:02:32]} 39. Rxf1 {[%emt 0:00:02]} Nxa4 {[%emt 0:00:10]} 40. Rb4 {[%emt 0:00:00]} Nc3 {[%emt 0:00:21]} 41. Ra1 {[%emt 0:03:58]} f6 {[%emt 0:03:23]} 42. Nd3 {[%emt 0:01:08]} Ne4 {[%emt 0:00:31]} 43. Rb2 {[%emt 0:03:08]} Nd6 {[%emt 0:01:34]} 44. Rba2 {[%emt 0:00:48]} a5 {[%emt 0:01:52]} 45. Kg3 {[%emt 0:00:22]} Kf7 {[%emt 0:00:49]} 46. Rb1 {[%emt 0:00:15]} Ne4+ {[%emt 0:01:00]} 0-1

[Event "ESTCC U50 2018"]
[Site "Walbrzych"]
[Date "2018.04.18"]
[Round "5"]
[White "Sazonova, Elena N"]
[Black "Van de Wynkele, Herman"]
[Result "1-0"]
[ECO "B06"]
[WhiteElo "2139"]
[BlackElo "2048"]
[Annotator "NA"]
[PlyCount "58"]
[EventDate "2018.??.??"]
[EventCountry "POL"]
[SourceTitle "playchess.com"]
[Source "ChessBase"]
[SourceQuality "1"]
[WhiteTeam "Russia"]
[BlackTeam "Belgium"]
[WhiteTeamCountry "RUS"]
[BlackTeamCountry "BEL"]
[TimeControl "40/5400+30:1800+30"]

1. e4 {[%emt 0:00:00]} g6 {[%emt 0:00:07]} 2. d4 {[%emt 0:00:00]} Bg7 {[%emt 0:00:09]} 3. Nc3 {[%emt 0:00:23]} d6 {[%emt 0:00:08]} 4. Nf3 {[%emt 0:00:28]} a6 {[%emt 0:00:21] LiveBook: 1147 Games} 5. Be3 {[%emt 0:00:50]} b5 {[%emt 0:00:23]} 6. Bd3 {[%emt 0:00:52]} Bb7 {[%emt 0:00:14]} 7. Ne2 {[%emt 0:18:15] B06: Modern Defence} Nd7 {[%emt 0:19:14]} 8. a4 {[%emt 0:05:05]} c6 {[%emt 0:11:04]} 9. Qd2 {[%emt 0:04:09]} e5 {[%emt 0:03:21]} 10. dxe5 {[%emt 0:01:04]} dxe5 {[%emt 0:00:36]} 11. O-O {[%emt 0:04:36]} Ngf6 $146 {[%emt 0:00:07]} ({Predecessor:} 11... Qe7 12. Ng3 h5 13. h3 Nc5 14. axb5 axb5 15. Rxa8+ Bxa8 16. Bxc5 Qxc5 17. Qa5 Bb7 18. Qc7 Qa7 19. Nxe5 {1-0 (19) Sedlak,N (2573)-Karall,L (1984) Lienz 2013}) 12. Ng3 {[%emt 0:03:42]} Ng4 {[%emt 0:01:17]} 13. Bg5 {[%emt 0:01:25]} f6 {[%emt 0:02:29]} 14. h3 {[%emt 0:00:06]} fxg5 {[%emt 0:00:50]} 15. hxg4 {[%emt 0:00:10]} Bf6 {[%emt 0:01:31]} 16. b4 {[%emt 0:02:40]} O-O {[%emt 0:02:22]} 17. c4 {[%emt 0:00:27]} bxc4 {[%emt 0:05:41]} 18. Bxc4+ {[%emt 0:00:14]} Kg7 {[%emt 0:00:01]} 19. Be6 {[%emt 0:05:18]} Nb6 {[%emt 0:00:41]} 20. a5 {[%emt 0:00:18]} Qe7 {[%emt 0:01:47]} 21. Bb3 {[%emt 0:09:19]} Rfd8 {[%emt 0:02:41]} 22. Qc3 {[%emt 0:00:21]} Nd7 {[%emt 0:00:26]} 23. Rac1 {[%emt 0:08:28]} Rac8 {[%emt 0:00:30]} 24. Bc4 {[%emt 0:01:18]} Nf8 {[%emt 0:02:13]} 25. Rfd1 {[%emt 0:03:40]} Ne6 {[%emt 0:01:35]} 26. Bxe6 {[%emt 0:00:09]} Qxe6 {[%emt 0:00:10]} 27. Qc5 $14 {[%emt 0:02:31]} Qxg4 {[%emt 0:05:21]} 28. Qb6 {[%emt 0:04:42]} Rd7 {[%emt 0:00:48]} 29. Qc5 Qe6 1-0

[Event "ESTCC U50 2018"]
[Site "Walbrzych"]
[Date "2018.04.18"]
[Round "5"]
[White "Laszewicz, Pawel"]
[Black "Robertson, Ian C"]
[Result "1-0"]
[ECO "C41"]
[WhiteElo "2110"]
[BlackElo "2038"]
[Annotator "NA"]
[PlyCount "127"]
[EventDate "2018.??.??"]
[EventCountry "POL"]
[SourceTitle "playchess.com"]
[Source "ChessBase"]
[SourceQuality "1"]
[WhiteTeam "Poland"]
[BlackTeam "Scotland"]
[WhiteTeamCountry "POL"]
[BlackTeamCountry "SCO"]
[TimeControl "40/5400+30:1800+30"]

1. e4 {[%emt 0:00:00]} e5 {[%emt 0:00:33]} 2. Nf3 {[%emt 0:00:00]} d6 {[%emt 0:00:08]} 3. d4 {[%emt 0:00:02]} exd4 {[%emt 0:00:21]} 4. Qxd4 {[%emt 0:00:46]} Nf6 {[%emt 0:01:06]} 5. Nc3 {[%emt 0:01:41]} Be7 {[%emt 0:00:17]} 6. Bf4 {[%emt 0:01:34]} O-O {[%emt 0:01:27]} 7. O-O-O {[%emt 0:01:45]} Nc6 {[%emt 0:04:51]} 8. Qd2 $11 {[%emt 0:01:03]} Be6 {[%emt 0:09:45]} 9. h3 {[%emt 0:04:34]} Rb8 {[%emt 0:03:34]} 10. Bb5 {[%emt 0:11:44]} a6 {[%emt 0:08:00]} 11. Bxc6 {[%emt 0:03:12]} bxc6 {[%emt 0:00:11]} 12. Nd4 {[%emt 0:07:20]} Qd7 {[%emt 0:02:44]} 13. g4 {[%emt 0:04:00]} d5 {[%emt 0:14:55]} 14. e5 {[%emt 0:13:06]} Ne8 {[%emt 0:01:46]} 15. Bg3 {[%emt 0:02:05]} c5 {[%emt 0:03:59]} 16. Nxe6 {[%emt 0:18:04]} fxe6 {[%emt 0:00:44]} 17. Nxd5 {[%emt 0:02:31]} exd5 {[%emt 0:07:18]} 18. Qxd5+ {[%emt 0:00:16]} Qxd5 {[%emt 0:00:08]} 19. Rxd5 {[%emt 0:00:04]} c6 {[%emt 0:04:44]} 20. Rd7 {[%emt 0:01:21]} Bg5+ {[%emt 0:00:36]} 21. Kb1 {[%emt 0:01:17]} Bf4 {[%emt 0:01:44]} 22. Ra7 {[%emt 0:01:04]} Bxg3 {[%emt 0:06:13]} 23. fxg3 {[%emt 0:00:03]} Rf3 {[%emt 0:00:55]} 24. Rxa6 {[%emt 0:00:45]} Re3 {[%emt 0:00:15]} 25. Rxc6 {[%emt 0:01:45]} Rxe5 {[%emt 0:00:09]} 26. a4 {[%emt 0:01:08]} Ra8 {[%emt 0:13:36]} 27. b3 {[%emt 0:01:35]} Nf6 {[%emt 0:08:57]} 28. Rd1 {[%emt 0:01:25]} Ne4 {[%emt 0:00:42]} 29. Rd7 {[%emt 0:00:27]} Nxg3 {[%emt 0:00:46]} 30. Rcc7 {[%emt 0:01:35]} Rg5 {[%emt 0:00:37]} 31. Ra7 {[%emt 0:12:28]} Rxa7 {[%emt 0:02:09]} 32. Rxa7 {[%emt 0:00:02]} h5 {[%emt 0:01:00]} 33. a5 {[%emt 0:00:34]} hxg4 {[%emt 0:00:14]} 34. hxg4 {[%emt 0:00:20]} Rxg4 {[%emt 0:00:13]} 35. Rc7 {[%emt 0:01:04]} Rg6 {[%emt 0:01:41]} 36. Rxc5 {[%emt 0:00:31]} Ra6 {[%emt 0:00:59]} 37. b4 {[%emt 0:00:50]} Ne4 {[%emt 0:00:33]} 38. Re5 {[%emt 0:04:04]} Nd6 {[%emt 0:00:38]} 39. Ka2 {[%emt 0:00:00]} Kf7 {[%emt 0:00:00]} 40. Kb3 {[%emt 0:00:00]} Kf6 {[%emt 0:00:15]} 41. Rd5 {[%emt 0:02:38]} Ke6 {[%emt 0:01:00]} 42. c4 {[%emt 0:02:01]} Ra8 {[%emt 0:11:08]} 43. Rd3 {[%emt 0:02:48]} g5 {[%emt 0:05:14]} 44. c5 {[%emt 0:03:39]} Nb5 {[%emt 0:02:32]} 45. Kc4 {[%emt 0:00:24]} Rb8 {[%emt 0:00:04]} 46. a6 {[%emt 0:05:10]} g4 {[%emt 0:01:13]} 47. Re3+ {[%emt 0:02:11]} Kf6 {[%emt 0:01:34]} 48. Re4 {[%emt 0:01:38]} Nc7 {[%emt 0:04:50]} 49. Rxg4 {[%emt 0:02:00]} Nxa6 {[%emt 0:00:59]} 50. b5 {[%emt 0:00:53]} Nc7 {[%emt 0:00:44]} 51. b6 {[%emt 0:01:06]} Na8 {[%emt 0:04:52]} 52. Kb5 {[%emt 0:01:49]} Ke6 {[%emt 0:01:40]} 53. Rg7 {[%emt 0:02:36]} Kd5 {[%emt 0:01:26]} 54. b7 {[%emt 0:01:18]} Rh8 {[%emt 0:00:50]} 55. c6 {[%emt 0:03:52]} Kd6 {[%emt 0:00:19]} 56. Rd7+ {[%emt 0:00:33]} Ke6 {[%emt 0:00:17]} 57. bxa8=Q {[%emt 0:02:53]} Rxa8 {[%emt 0:00:05]} 58. Rd1 {[%emt 0:00:34]} Ra2 {[%emt 0:00:47]} 59. c7 {[%emt 0:00:29]} Rb2+ {[%emt 0:00:31]} 60. Kc6 {[%emt 0:00:27]} Rc2+ {[%emt 0:00:13]} 61. Kb7 {[%emt 0:00:17]} Rb2+ {[%emt 0:00:11]} 62. Kc8 {[%emt 0:00:10]} Rh2 {[%emt 0:01:23]} 63. Rb1 {[%emt 0:00:29]} Rc2 {[%emt 0:00:23]} 64. Kb8 {[%emt 0:00:24]} 1-0

[Event "ESTCC U50 2018"]
[Site "Walbrzych"]
[Date "2018.04.18"]
[Round "5"]
[White "Wagner-Michel, Annett"]
[Black "De la Orden Alcocer, Alejandro"]
[Result "1-0"]
[ECO "B12"]
[WhiteElo "2104"]
[BlackElo "2013"]
[Annotator "NA"]
[PlyCount "73"]
[EventDate "2018.??.??"]
[EventCountry "POL"]
[SourceTitle "playchess.com"]
[Source "ChessBase"]
[SourceQuality "1"]
[WhiteTeam "Germany"]
[BlackTeam "Spain"]
[WhiteTeamCountry "GER"]
[BlackTeamCountry "ESP"]
[TimeControl "40/5400+30:1800+30"]

1. e4 {[%emt 0:00:00]} c6 {[%emt 0:03:01]} 2. d4 {[%emt 0:00:00]} g6 {[%emt 0:00:39]} 3. f4 {[%emt 0:01:08]} d5 {[%emt 0:00:48]} 4. e5 {[%emt 0:00:29]} h5 {[%emt 0:00:18]} 5. Nd2 {[%emt 0:03:18] B12: Caro-Kann: Advance Variation} (5. Nf3 Bg4 6. h3 Bxf3 7. Qxf3 e6 8. Bd3 h4 9. Be3 Nh6 10. Nd2 Nd7 11. Qf2 Be7 12. Nf3 Nf5 13. Bxf5 exf5 {0-1 (37) Andrejevs,A (2256)-Shvyrjov,I (2389) Orsha 2018}) 5... Nh6 {[%emt 0:00:19]} 6. Ndf3 {[%emt 0:01:57]} Bf5 {[%emt 0:03:42]} 7. c3 {[%emt 0:05:09]} Nd7 $146 {[%emt 0:02:55]} ({Predecessor:} 7... e6 8. Bd3 Nd7 9. Ne2 a5 10. a4 Be7 11. O-O {0-1 (34) Hardman,G-Frumkin,E USA corr 1991}) 8. Ne2 {[%emt 0:06:35]} e6 {[%emt 0:00:42]} 9. Be3 {[%emt 0:02:30]} Be7 {[%emt 0:01:37]} 10. Qd2 {[%emt 0:06:14]} a6 {[%emt 0:00:43]} 11. Bf2 {[%emt 0:04:39]} Rb8 {[%emt 0:13:35]} 12. h3 {[%emt 0:01:21]} h4 {[%emt 0:00:16]} 13. g3 {[%emt 0:05:04]} Be4 {[%emt 0:00:33]} 14. Bg2 {[%emt 0:00:19]} hxg3 {[%emt 0:00:32]} 15. Nxg3 {[%emt 0:00:19]} Bxf3 {[%emt 0:14:21]} 16. Bxf3 {[%emt 0:00:03]} Bh4 {[%emt 0:04:25]} 17. Kf1 {[%emt 0:13:34]} Nf5 {[%emt 0:01:01]} 18. Qe1 {[%emt 0:02:46]} Bxg3 {[%emt 0:03:20]} 19. Bxg3 {[%emt 0:00:03]} Ne3+ {[%emt 0:00:41]} 20. Qxe3 {[%emt 0:00:14]} c5 {[%emt 0:00:10]} 21. dxc5 {[%emt 0:03:34]} Rc8 {[%emt 0:00:31]} 22. Kg2 {[%emt 0:02:42]} Nxc5 $18 {[%emt 0:03:10]} 23. h4 {[%emt 0:00:41]} Na4 {[%emt 0:00:13]} 24. Rab1 {[%emt 0:02:40]} Rc4 {[%emt 0:00:02]} 25. Be1 {[%emt 0:01:25]} Qc7 {[%emt 0:00:16]} 26. b3 {[%emt 0:01:35]} d4 {[%emt 0:00:27]} 27. Qd3 {[%emt 0:01:29]} Rxc3 {[%emt 0:18:35]} 28. Bxc3 {[%emt 0:00:37]} Nxc3 {[%emt 0:00:06]} 29. Rbc1 {[%emt 0:01:35]} Qb6 {[%emt 0:01:39]} 30. Rc2 {[%emt 0:01:48]} Ke7 {[%emt 0:00:47]} 31. h5 {[%emt 0:01:07]} gxh5 {[%emt 0:00:48]} 32. Rxh5 {[%emt 0:00:03]} Rg8+ {[%emt 0:01:36]} 33. Kh2 {[%emt 0:04:34]} a5 {[%emt 0:01:49]} 34. Rg2 {[%emt 0:04:39]} Rxg2+ {[%emt 0:02:35]} 35. Kxg2 {[%emt 0:00:46]} a4 {[%emt 0:00:01]} 36. Rh7 {[%emt 0:01:38]} axb3 {[%emt 0:00:53]} 37. Qg6 {[%emt 0:01:04]} 1-0

[Event "ESTCC U50 2018"]
[Site "Walbrzych"]
[Date "2018.04.18"]
[Round "5"]
[White "Van Herck, Marcel"]
[Black "Sirotkina, Nina"]
[Result "0-1"]
[ECO "B81"]
[WhiteElo "2061"]
[BlackElo "2175"]
[Annotator "NA"]
[PlyCount "54"]
[EventDate "2018.??.??"]
[EventCountry "POL"]
[SourceTitle "playchess.com"]
[Source "ChessBase"]
[SourceQuality "1"]
[WhiteTeam "Belgium"]
[BlackTeam "Russia"]
[WhiteTeamCountry "BEL"]
[BlackTeamCountry "RUS"]
[TimeControl "40/5400+30:1800+30"]

1. e4 {[%emt 0:00:00]} c5 {[%emt 0:01:03]} 2. Nf3 {[%emt 0:00:11]} e6 {[%emt 0:00:32]} 3. d4 {[%emt 0:00:08]} cxd4 {[%emt 0:00:06]} 4. Nxd4 {[%emt 0:00:05]} Nf6 {[%emt 0:00:44]} 5. Nc3 {[%emt 0:00:19]} d6 {[%emt 0:00:57]} 6. g4 {[%emt 0:00:32]} h6 {[%emt 0:06:04]} 7. g5 {[%emt 0:00:59]} hxg5 {[%emt 0:02:04]} 8. Bxg5 {[%emt 0:00:06] LiveBook: 262 Games} Be7 $11 {[%emt 0:02:17]} 9. h4 {[%emt 0:02:25]} a6 {[%emt 0:04:25]} 10. Bg2 {[%emt 0:03:13]} Qc7 {[%emt 0:13:03]} 11. Qe2 {[%emt 0:13:38]} Nc6 {[%emt 0:05:55]} 12. O-O-O {[%emt 0:00:44]} Nxd4 {[%emt 0:12:08]} 13. Rxd4 {[%emt 0:00:07]} Bd7 {[%emt 0:01:15]} 14. f4 {[%emt 0:30:52]} Bc6 {[%emt 0:19:18]} 15. e5 {[%emt 0:18:08]} Bxg2 {[%emt 0:03:33]} 16. Qxg2 {[%emt 0:00:23]} O-O-O {[%emt 0:04:06]} 17. exf6 {[%emt 0:07:39]} gxf6 {[%emt 0:00:07]} 18. Rd3 {[%emt 0:07:11]} Kb8 {[%emt 0:03:35]} 19. h5 {[%emt 0:02:49]} fxg5 {[%emt 0:01:09]} 20. fxg5 {[%emt 0:00:04]} d5 {[%emt 0:02:14]} 21. Rf3 {[%emt 0:03:37]} Rdg8 {[%emt 0:00:51]} 22. g6 {[%emt 0:03:46]} fxg6 {[%emt 0:01:42]} 23. hxg6 {[%emt 0:00:07]} Rxh1+ {[%emt 0:02:45]} 24. Qxh1 {[%emt 0:00:03]} Rxg6 {[%emt 0:00:16]} 25. Ne2 {[%emt 0:01:38]} Qe5 {[%emt 0:03:58]} 26. Qd1 {[%emt 0:01:30]} Bc5 {[%emt 0:01:44]} 27. c3 {[%emt 0:00:59]} Be3+ 0-1

[Event "ESTCC U50 2018"]
[Site "Walbrzych"]
[Date "2018.04.18"]
[Round "5"]
[White "Strzelecki, Jerzy"]
[Black "Akkanen, Timo"]
[Result "1-0"]
[ECO "A21"]
[WhiteElo "2038"]
[BlackElo "1667"]
[Annotator "NA"]
[PlyCount "109"]
[EventDate "2018.??.??"]
[EventCountry "POL"]
[SourceTitle "playchess.com"]
[Source "ChessBase"]
[SourceQuality "1"]
[WhiteTeam "Poland"]
[BlackTeam "Finland"]
[WhiteTeamCountry "POL"]
[BlackTeamCountry "FIN"]
[TimeControl "40/5400+30:1800+30"]

1. c4 e5 2. Nc3 c5 3. g3 g6 4. Nf3 Nc6 5. Bg2 Bg7 6. d3 Nge7 7. Nd2 d6 8. Nf1 O-O 9. Ne3 Rb8 10. O-O f5 11. Ned5 h6 12. Rb1 Nxd5 13. Nxd5 Ne7 14. b4 Nxd5 15. Bxd5+ Kh7 16. e3 f4 $16 (16... b6 $11) 17. exf4 Bh3 18. Bg2 Qd7 19. Be3 b6 20. Qf3 Bg4 21. Qd5 Rbd8 22. fxe5 Bxe5 23. bxc5 Be6 24. c6 Bxd5 25. cxd7 Bxg2 26. Kxg2 Rxd7 27. Rb5 Bc3 28. Rfb1 Rdf7 29. Rd5 Rf6 30. h4 Bd2 31. Bd4 Re6 32. Rb2 Be1 33. a4 Rf7 34. Kf1 Rfe7 35. h5 g5 36. Rf5 Ba5 37. Rf8 Re8 38. Rxe8 Rxe8 39. Re2 Rxe2 40. Kxe2 Bb4 41. Ke3 Kg8 42. Ke4 Kf7 43. Kf5 Be1 44. g4 Bd2 45. Ke4 Bb4 46. Be3 Bc3 47. d4 Ke6 48. f4 Kf6 49. Kd5 Bb4 50. fxg5+ hxg5 51. h6 a6 52. Bxg5+ Kg6 53. Bf4 b5 54. cxb5 axb5 55. axb5 1-0